Cogmind - Beta 14 @@@ ROGUE MODE // 2025.03.06 @ 22:23:20 Player: deadnoob Result: Destroyed by Y-45 Defender with Heavy Assault Rifle Performance ------------- Evolutions (0) 0 Regions Visited (3) 600 Robots Destroyed (60) 300 Value Destroyed (1165) 1165 Prototype IDs (4) 80 Alien Tech Used (0) 0 Bonus (-7) -7 TOTAL SCORE: 2138 Bonus ------- Friendly Fire -7 Cogmind --------- Core Integrity 0/250 Matter 300/300 Energy 196/200 System Corruption 2% Temperature Cool (11) Movement Treading (160) Location -8/Recycling Parts ------- > --- POWER (1) -------- Subdweller Power Source > --- PROPULSION (2) --- Light Treads Light Treads > --- UTILITY (2) ------ Large Storage Unit > --- WEAPON (2) ------- Subdweller Laser Katana > --- INVENTORY (15) --- Cargo Legs Medium Storage Unit Core Shielding Subdweller Laser Assault Rifle Assault Rifle Assault Rifle Rocket Launcher Rocket Launcher Missile Launcher Peak State ------------ > --- POWER ------------ Ion Engine > --- PROPULSION ------- Aluminum Leg Makeshift Leg > --- UTILITY ---------- Medium Storage Unit Light Armor Plating > --- WEAPON ----------- Improved EM Shotgun Improved EM Shotgun > --- INVENTORY -------- Light Treads Light Treads Seismic Detector Core Shielding Assault Rifle Assault Rifle Assault Rifle Rocket Launcher Rocket Launcher Rocket Launcher [Rating: 15] Favorites ----------- Power Ion Engine Engine Ion Engine Propulsion Aluminum Leg Treads Light Treads Leg Aluminum Leg Utility Medium Storage Unit Device Seismic Detector Storage Medium Storage Unit Protection Light Armor Plating Weapon Assault Rifle Energy Gun Small Laser Ballistic Gun Assault Rifle Launcher Rocket Launcher Slashing Weapon Katana Build | -11 -10 -10 -8 ------- Run | Yrd Mat Sub Rec Slots Evolved . | . . . . Power . | . . . . Propulsion . | . . . . Utility . | . . . . Weapon . | . . . . Parts Attached 39 | 2 15 19 3 Power 2 | . 1 1 . Engine 2 | . 1 1 . Core . | . . . . Reactor . | . . . . Propulsion 8 | . 5 3 . Treads 5 | . 3 2 . Leg 3 | . 2 1 . Wheel . | . . . . Hover . | . . . . Flight . | . . . . Utility 6 | 1 3 1 1 Device 2 | 1 1 . . Storage 2 | . 1 . 1 Processor . | . . . . Hackware . | . . . . Protection 2 | . 1 1 . Artifact . | . . . . Weapon 23 | 1 6 14 2 Energy Gun 9 | . 2 6 1 Energy Cannon . | . . . . Ballistic Gun 5 | 1 2 2 . Ballistic Cannon . | . . . . Launcher 8 | . 2 6 . Special Weapon . | . . . . Impact Weapon . | . . . . Slashing Weapon 1 | . . . 1 Piercing Weapon . | . . . . Special Melee Weapon . | . . . . Unidentified Prototypes 1 | . 1 . . Corrupted Parts 1 | . . 1 . System Corruption 2 | . . 2 . Parts Lost 5 | . 1 4 . Power 2 | . 1 1 . Propulsion 1 | . . 1 . Utility 1 | . . 1 . Weapon 1 | . . 1 . Highest Loss Streak 1 | . 1 1 . To Critical Strikes . | . . . . Average Slot Usage (%) 93 | . 99 96 74 Engine 13 | . 14 13 14 Treads 10 | . . 11 28 Leg 17 | . 27 16 . Device 7 | . 13 3 . Storage 14 | . 14 14 14 Protection 3 | . . 8 . Energy Gun 9 | . 8 9 12 Ballistic Gun 8 | . 16 2 . Launcher 6 | . 2 15 . Slashing Weapon 1 | . . . 5 Peak Build Rating 15 | 7 12 15 13 Average Rating 9 | 6 7 11 10 On Entrance 8 | 6 7 10 11 Naked Turns . | . . . . Heaviest Build 31 | 12 24 26 31 Greatest Support 40 | 20 40 40 40 Greatest Overweight (x) 1 | . 1 1 . Average Overweight (x) . | . . . . Largest Inventory Capacity 15 | 8 10 10 15 Average Capacity 9 | 8 8 10 11 Most Carried 11 | 6 10 10 11 Average Carried 8 | 4 8 9 9 Final Capacity 15 | 8 10 10 15 Final Carried 11 | 4 10 8 11 Class Distribution -------------------- 100% | Mutant Dominant Class ---------------- Mutant | -10/Materials Mutant | -10/Subcaves Mutant | -8/Recycling Resources | -11 -10 -10 -8 ----------- Run | Yrd Mat Sub Rec Matter Collected 1409 | 268 503 296 342 Remotely . | . . . . Salvage Created 2084 | 346 570 464 704 Parts 130 | 28 42 36 24 Haulers Intercepted . | . . . . Recyclers Shooed 3 | . 1 . 2 Parts Field Recycled . | . . . . Retrieved Matter . | . . . . Parts Self-Destructed 8 | . . 8 . Prevented . | . . . . Kills | -11 -10 -10 -8 ------- Run | Yrd Mat Sub Rec Combat Hostiles Destroyed 37 | . 17 19 1 Melee 1 | . . . 1 Guns 19 | . 17 2 . AOE 16 | . . 16 . Classes Destroyed 10 | 3 3 3 1 Worker 2 | 2 . . . Tunneler 9 | 9 . . . Recycler 9 | 1 1 . 7 Turret 2 | . . 2 . Watcher 1 | . 1 . . Swarmer 16 | . 9 7 . Grunt 8 | . 8 . . Sentry 1 | . . . 1 Artisan 1 | . . 1 . Subdweller 12 | . . 12 . Best Kill Streak 5 | 4 5 4 5 Combat Bots Only 5 | . 5 4 1 Max Kills in Single Turn 4 | 1 1 4 1 Gunslinging . | . . . . Exploded 4 | . . 4 . Melee 1 | . . . 1 Uniques/NPCs Destroyed . | . . . . Combat | -11 -10 -10 -8 -------- Run | Yrd Mat Sub Rec Hostile Shots Fired 124 | . 63 57 4 Missed 29 | . 10 19 . Damage Taken 1324 | . 573 695 56 Core 262 | . 101 145 16 Absorbed by Shields . | . . . . Redirected to Shielding 2 | . 2 . . Core Remaining (%) 100 | 100 . . . Volleys Fired 159 | 20 61 53 25 Largest 2 | 2 2 2 1 Hottest 90 | 80 60 90 60 Shots Fired 264 | 40 119 79 26 Gun 226 | 40 117 43 26 Cannon . | . . . . Launcher 38 | . 2 36 . Special . | . . . . Kinetic 102 | 16 80 6 . Thermal 95 | 20 37 12 26 Explosive 38 | . 2 36 . Electromagnetic 29 | 4 . 25 . Robot Hit Streak 15 | 7 14 15 4 Robot Miss Streak 4 | 2 4 2 3 Penetration Max . | . . . . Secondary Targets 1 | . 1 . . Max Gunslinging Chain 1 | . 1 . . Shots Hit Robots 165 | 23 78 43 21 Core Hits 92 | 13 31 41 7 Critical Kills 1 | . 1 . . Critical Parts Destroyed . | . . . . Critical Strikes 2 | . 1 1 . Destroy 2 | . 1 1 . Melee Attacks 6 | . . . 6 Impact . | . . . . Slashing 6 | . . . 6 Piercing . | . . . . Sneak Attacks 4 | . . . 4 Combat Hostiles . | . . . . Follow-up Attacks . | . . . . Damage Inflicted 4193 | 255 985 2318 635 Guns 1982 | 255 930 435 362 Cannons . | . . . . Explosions 1902 | . 19 1883 . Melee 263 | . . . 263 Ramming 46 | . 36 . 10 Kinetic 761 | 82 627 52 . Thermal 929 | 161 303 103 362 Explosive 1858 | . 19 1839 . Electromagnetic 336 | 12 . 324 . Impact . | . . . . Slashing 263 | . . . 263 Piercing . | . . . . Highest Corruption 2 | . . 2 2 Average Corruption 2 | . . 2 2 Corruption Purged . | . . . . Corruption Blocked . | . . . . Effects 18 | . . 9 9 Message Errors 2 | . . 1 1 Matter Fused 6 | . . 1 5 Heat Flow Errors 1 | . . 1 . Energy Discharges 4 | . . 3 1 Data Loss (minor) 2 | . . 2 . Data Loss (major) 1 | . . . 1 Misfires 1 | . . . 1 Weapon Failures 1 | . . 1 . Overload Shots . | . . . . Overflow Damage 134 | . . 37 97 Projectiles . | . . . . Explosions 37 | . . 37 . Melee 97 | . . . 97 Knockbacks . | . . . . Impact . | . . . . Kinetic . | . . . . Secondary . | . . . . Self-Inflicted Damage 109 | . 26 83 . Shots 4 | . 1 3 . Rammed 6 | . . . 6 Targets Rammed 13 | . 7 . 6 Kicked 7 | . 7 . . Crushed . | . . . . Highest Temperature 140 | 54 36 140 130 Average Temperature 38 | 32 13 74 56 Received Heat Transfer 399 | . 213 168 18 Siege Activations . | . . . . Robots Corrupted 1 | . . 1 . Combat Hostiles 1 | . . 1 . Parts Fried 3 | . . 3 . Impact Corruptions . | . . . . Robots Melted . | . . . . Combat Hostiles . | . . . . Parts Melted 1 | . . 1 . Heat Transferred 1650 | 375 700 125 450 Parts Sabotaged . | . . . . Parts Stolen . | . . . . Parts Stripped . | . . . . Power Chain Reactions 1 | . . 1 . Alert | -11 -10 -10 -8 ------- Run | Yrd Mat Sub Rec Peak Influence 347 | 60 347 . 195 Initial 170 | . . . 170 Average 101 | 20 140 . 104 Maximum Alert Level 1 | . 1 . . Low Security (%) 83 | 100 67 . 100 Level 1 16 | . 32 . . Level 2 . | . . . . Level 3 . | . . . . Level 4 . | . . . . Level 5 . | . . . . High Security . | . . . . Max Security . | . . . . Squads Dispatched 5 | . 5 . . Investigation 4 | . 4 . . Extermination . | . . . . Reinforcement 1 | . 1 . . Assault . | . . . . Garrison . | . . . . Intercept . | . . . . Searches Triggered . | . . . . Construction Impeded . | . . . . Haulers Reinforced . | . . . . Active Scanning Responses . | . . . . Cargo Convoy Interrupts . | . . . . Stealth | -11 -10 -10 -8 --------- Run | Yrd Mat Sub Rec Distress Signals 3 | . 3 . . Communications Jammed . | . . . . Distress Signals . | . . . . Times Spotted 59 | . 35 22 2 Peak Tracking Total 6 | . 4 6 1 Tactical Retreats 7 | . 4 3 . Traps | -11 -10 -10 -8 ------- Run | Yrd Mat Sub Rec Traps Triggered 1 | . 1 . . Indirectly . | . . . . Trap Hack Attempts . | . . . . Triggered . | . . . . Disarmed . | . . . . Reprogrammed . | . . . . Reused . | . . . . Traps Extracted . | . . . . Installed . | . . . . Triggered . | . . . . Machines | -11 -10 -10 -8 ---------- Run | Yrd Mat Sub Rec Machines Disabled 3 | . . 3 . Max in Single Turn 2 | . . 2 . Machines Repaired . | . . . . Machines Dismantled . | . . . . Machines Sabotaged . | . . . . Overloaded Fab Kills . | . . . . Hacking | -11 -10 -10 -8 --------- Run | Yrd Mat Sub Rec Machines Accessed 12 | . 6 1 5 Terminals 8 | . 4 . 4 Fabricators . | . . . . Repair Stations . | . . . . Recycling Units 3 | . 2 . 1 Scanalyzers . | . . . . Garrison Access . | . . . . Total Hacks 26 | . 13 5 8 Successful 15 | . 6 5 4 Failed 11 | . 7 . 4 Catastrophic 1 | . . . 1 Database Lockouts . | . . . . Manual 13 | . 8 . 5 Terminals 16 | . 11 . 5 Fabricators . | . . . . Repair Stations . | . . . . Recycling Units 5 | . 2 . 3 Scanalyzers . | . . . . Garrison Access . | . . . . Terminal Hacks 9 | . 4 5 . Record 5 | . . 5 . Robot Analysis 1 | . 1 . . Prototype ID Bank 1 | . 1 . . Emergency Access Points 1 | . 1 . . Hauler Manifests 1 | . 1 . . Fabricator Hacks . | . . . . Repair Station Hacks . | . . . . Recycling Unit Hacks . | . . . . Scanalyzer . | . . . . Garrison Access Hacks . | . . . . Unauthorized Hacks 6 | . 2 . 4 Terminals 4 | . . . 4 Skim 4 | . . . 4 Fabricators . | . . . . Repair Stations . | . . . . Recycling Units 2 | . 2 . . Tunnel 2 | . 2 . . Scanalyzers . | . . . . Garrison Access . | . . . . Data Cores Recovered . | . . . . Used . | . . . . Hacking Detections 5 | . 4 . 1 Full Trace Events 1 | . 1 . . Feedback Events . | . . . . Feedback Blocked . | . . . . Robot Schematics Acquired . | . . . . Robots Built . | . . . . Authchips . | . . . . Time . | . . . . Total Robot Build Rating . | . . . . Part Schematics Acquired . | . . . . Parts Built . | . . . . Authchips . | . . . . Time . | . . . . Total Part Build Rating . | . . . . Parts Repaired . | . . . . Time . | . . . . Parts Recycled . | . . . . Recycled Matter . | . . . . Retrieved Matter . | . . . . Retrieved Components . | . . . . Parts Scanalyzed . | . . . . Part Schematics Acquired . | . . . . Parts Damaged . | . . . . Bothacking | -11 -10 -10 -8 ------------ Run | Yrd Mat Sub Rec Used RIF Installer . | . . . . Robots Hacked . | . . . . Non-combat . | . . . . Combat . | . . . . Robot Hacks Applied . | . . . . Relay Couplers Released . | . . . . Fabnet Peak Effective % . | . . . . Robots Rewired . | . . . . Allies Hacked . | . . . . Hacks Repelled . | . . . . Allies | -11 -10 -10 -8 -------- Run | Yrd Mat Sub Rec Total Allies . | . . . . Largest Group . | . . . . Highest-Rated Group . | . . . . Highest-Rated Ally . | . . . . Total Orders . | . . . . Ally Attacks . | . . . . Total Damage . | . . . . Kills . | . . . . Allies Corrupted . | . . . . Allies Melted . | . . . . Intel | -11 -10 -10 -8 ------- Run | Yrd Mat Sub Rec Robot Analysis Total 1 | . 1 . . Derelict Logs Recovered 1 | . . 1 . Drone Launches . | . . . . Drone Recoveries . | . . . . Exploration | -11 -10 -10 -8 ------------- Run | Yrd Mat Sub Rec Turns Passed 4857 | 836 1725 1470 826 Spaces Moved 2106 | 45 809 789 463 Core . | . . . . Treads 812 | . 9 340 463 Legs 1294 | 45 800 449 . Wheels . | . . . . Hover . | . . . . Flight . | . . . . Fastest Speed 120 | 120 120 130 160 Average Speed 147 | 120 128 160 160 Slowest Speed 210 | 120 190 210 160 Overloaded Moves . | . . . . Propulsion Burnouts . | . . . . Robots Hopped . | . . . . Cave-ins Triggered . | . . . . Exploration Rate (%) 48 | 4 68 49 72 Regions Visited 3 Branch Regions 2 Pre-discovered Areas 4 | . 2 2 . Known Exits Taken . | . . . . Unknown Exits Taken 3 | 1 1 1 . Scrap Searched . | . . . . Spaces Dug 16 | . . 16 . Terrain Destroyed 216 | . 4 212 . Melee . | . . . . Projectile . | . . . . AOE 216 | . 4 212 . Terrain Rammed . | . . . . Walls Destroyed . | . . . . Machines Disabled . | . . . . Actions | -11 -10 -10 -8 --------- Run | Yrd Mat Sub Rec Total 3578 | 787 1372 906 513 Wait 1223 | 719 462 39 3 Move 2103 | 44 808 788 463 Hop . | . . . . Pick Up 15 | . 11 1 3 Fast Attach 9 | 1 3 4 1 Attach 6 | . 1 3 2 Detach 4 | . . 1 3 Swap 24 | 1 11 12 . Drop 16 | 2 8 5 1 Fire 159 | 20 61 53 25 Melee 6 | . . . 6 Ram . | . . . . Kick 7 | . 7 . . Crush 6 | . . . 6 Escape Stasis . | . . . . Rewire . | . . . . Trap . | . . . . Miscellaneous . | . . . . Route ------- -11/Scrapyard -10/Materials (discovered 4 exits: [*Mat x2] / [*Min] / *Sub) -10/Subcaves (discovered 2 exits: [*Mat] / *Rec) -8/Recycling History --------- Turn | Location | Event 15 | -11/Scrapyard | Discovered new exit (range 3) 837 | -11/Scrapyard | Entered Materials 838 | -10/Materials | Build established: Mutant 897 | -10/Materials | Discovered new exit (range 16) 1525 | -10/Materials | Discovered new exit (range 9) 1750 | -10/Materials | Discovered new exit (range 4) 2392 | -10/Materials | Discovered new exit (range 7) 2562 | -10/Materials | Entered Subcaves 2587 | -10/Subcaves | Visited Clippyterm 2593 | -10/Subcaves | Learned location of Deep Caves (-6) 2593 | -10/Subcaves | Learned Research machine intel 2919 | -10/Subcaves | Learned location of Zion (-6) 2919 | -10/Subcaves | Met a Zionite searching for "candidates" 2964 | -10/Subcaves | Ambushed by Subdweller buried in earth 3064 | -10/Subcaves | Shifting Twisted Machinery released Riot Gun 3079 | -10/Subcaves | Shifting Twisted Machinery released Sub. Power Source 3156 | -10/Subcaves | Ambushed by Subdweller buried in earth 3161 | -10/Subcaves | Core integrity fell below 50% 3200 | -10/Subcaves | Ambushed by angry Subdweller bent on revenge 3331 | -10/Subcaves | Ambushed by Subdwellers from Twisted Machinery 3370 | -10/Subcaves | Discovered new exit (range 14) 3402 | -10/Subcaves | A Subdweller sparked back to life 3402 | -10/Subcaves | A Subdweller sparked back to life 3402 | -10/Subcaves | A Subdweller sparked back to life 3421 | -10/Subcaves | Core integrity fell below 20% 3448 | -10/Subcaves | Found Prototype Leg 3503 | -10/Subcaves | Shifting Twisted Machinery released Sub. Laser 3512 | -10/Subcaves | Shifting Twisted Machinery released Piercing Trap 3709 | -10/Subcaves | Learned Materials terminal intel 3875 | -10/Subcaves | Ambushed by Subdweller buried in earth 3900 | -10/Subcaves | Discovered new exit (range 16) 4032 | -10/Subcaves | Entered Recycling 4858 | -8/Recycling | Destroyed by Y-45 Defender with Heavy Assault Rifle Last Messages --------------- 04605_ Connecting with Terminal... >>Trojan(Skim) Trojan loaded successfully. Testing... Terminal linked with 2 systems. Please expand to 2 more systems! 04661_ Acquired Lrg. Storage Unit. 04662_ System corrupted: Matter fused (-8). 04666_ Acquired Missile Launcher. 04680_ Acquired 18 matter. 04682_ RTIL,OJEKWBM0>TXHLDJ,QVGXJ4Z OGZM/:73HD 04709_ Connecting with Terminal... >>Trojan(Skim) Trojan loaded successfully. Testing... Terminal linked with 3 systems. Please expand to 1 more system! 04779_ System corrupted: Matter fused (-6). 04803_ Acquired 6 matter. 04858_ Y-45 Defender springs to life. Map ----- +----------------------------------------------------+ | ?????????????????????????????????????????????????? | | ?????????????????????????????????????????????????? | | ?????????????????????????????????????????????????? | | ?????????????????????????????????????????????????? | | ?????????????????????????????????????????????????? | | ?????????????????????????????????????????????????? | | ?????????????????????????????????????????????????? | | ?????????????????????????????????????????????????? | | ?????????????????????????????????????????????????? | | ?????????????????????????????????????????????????? | | ?????????????????????????????????????????????????? | | ?????????????????????????????????????????????????? | | ?????????????????????????????????????????????????? | | ?????????????????????????????????????????????????? | | ?????????????????????????#???????????????????????? | | #######?????????????????#Y###????????????????????? | | # = #????????????????? #????????????????????? | | #! #????????????????? #????????????????????? | | # = #????????????????? T?#####??????????????? | | #!% ![#????????????????## #?#! !#??????????????? | | # #????????????????! ###!!!#??????????????? | | # ] #??#########+#????! ## ??????????????? | | # #??# #????! ## ???????????????? | | # #??# ! #????# ## ???????????????? | | # ! #??# !#??### ## ######??????????? | | # / = #??#! #??#""@ ## ##"""#??????????? | | # #??# *! #??#"Y ## ##"T"######?????? | | # #??# =#??#"" ## # #?????? | | # #??? ???### ## # #?????? | | # [#?????! ]???????# ## + #?????? | | ####+#########+########## ## # #?????? | | # """ """ #?????? | | # """ """ #?????? | | " # """ """ #?????? | | " ################# ########### ??????? | | #???????????????# #?????????#########???????? | | #???????????????# #?????????????????????????? | | #?############### #?????????????????????????? | | #?# # #?????????????????????????? | | #?# + #?????????????????????????? | | ## # #?????????????????????????? | | #?# #% #?????????????????????????? | | #####+##+#####+## #?????????????????????????? | | % #?????????????????????????? | | #########+#########??????????????????? | | %#???# #??????????????????? | | % #??## #??????????????????? | | % #??#T +??????????????????? | | ######### # #??## " """"" #??????????????????? | | ????????### #???# """"""""" #??????????????????? | +----------------------------------------------------+ Best States ------------- Heat Dissipation 25 Energy Generation 10 Energy Capacity 250 Matter Stores 300 Matter Capacity 300 Sight Range 16 Terrain Scan Density 10 Armor Coverage 150 Core Shielding 20 Evasion (%) 55 Recoil Reduction 2 Item Schematics ----------------- None Robot Schematics ------------------ None Fabricated ------------ Nothing Alien Tech Used ----------------- None Achievements -------------- None Challenges ------------ None Game ------ Seed AuthchipBladeScrap Manual? 0 Play Time 00:22:43 Cumulative 331.7 hours Start 2025.03.06 @ 22:00:52 End 2025.03.06 @ 22:23:20 Sessions 1 Manual Loads 0 Difficulty Rogue Special Mode None Game No. 395 Rogue 395 Adventurer 0 Explorer 0 Win Type - Total 10 Types 8/0/1/1/0/0/0/0/0 Lore% 74 Gallery% 86 Achievement% 74 Wizard Run 0 Options --------- Layout 0 ASCII 0 Keyboard 1 Movement Numpad Keybinds 0 Fullscreen 2 Font 18/SmallcapsGlow Map View 76x50 Zoom Use 0% Tactical HUD 1 Map Filters NONE Filters NONE Steam 1 RUN: 568b4770-aa23-4b98-a030-b3bae56dec23